bitfinex-derivatives/quotes_ETHF0:USTF0_20241102
["timestamp","ask_amount","ask_price","bid_price","bid_amount"]
[1730520689580,6.87120893,2508.4,2508.3,0.27914]
[1730520689780,2.88480893,2508.4,2508.3,0.27914]
[1730520689980,6.87120893,2508.4,2508.3,0.27914]
[1730520690180,2.88480893,2508.4,2508.3,0.27914]
[1730520690386,6.87120893,2508.4,2508.3,0.27914]
[1730520691479,2.88480893,2508.4,2508.3,0.27914]
[1730520691675,6.87120893,2508.4,2508.3,0.27914]
[1730520691889,2.88480893,2508.4,2508.3,0.27914]
[1730520692079,6.87120893,2508.4,2508.3,0.27914]
[1730520692281,2.88480893,2508.4,2508.3,0.27914]
[1730520692880,2.60567893,2508.5,2508.1,1.15026226]
[1730520693081,1.56281021,2508.2,2508.1,1.42942226]
[1730520693276,1.56281021,2508.2,2508.1,2.27042226]
[1730520693489,1.56281021,2508.2,2508.1,3.74394747]
[1730520693984,1.56281021,2508.3,2508.1,3.74394747]
[1730520694192,2.08374695,2508.4,2508.3,0.27914]
[1730520694891,2.60567893,2508.5,2508.1,1.99126226]
[1730520695084,2.60567893,2508.5,2508.4,0.27913]
[1730520697181,2.88479893,2508.5,2508.4,0.27913]
[1730520697387,2.60567893,2508.5,2508.4,0.27913]
[1730520698090,0.27912,2508.5,2508.4,0.27913]
[1730520698394,0.80492,2508.5,2508.4,0.27913]
[1730520698892,0.80492,2508.5,2508.3,0.5097]
[1730520699191,2.60800088,2508.4,2508.3,0.78883]
[1730520699583,2.60800088,2508.4,2508.3,1.35596584]
[1730520703585,2.60800088,2508.4,2508.3,0.78883]
[1730520703782,2.60800088,2508.4,2508.3,1.35625575]
[1730520705191,0.5258,2508.5,2508.4,0.27913]
[1730520705488,0.80492,2508.5,2508.4,0.56742575]
[1730520706992,0.80492,2508.5,2508.4,0.56761194]
[1730520707296,0.80492,2508.5,2508.4,0.56761165]
[1730520710592,0.80492,2508.5,2508.4,0.5676666]
[1730520712599,0.80492,2508.5,2508.4,0.8467966]
[1730520714196,0.5258,2508.5,2508.4,0.27913]
[1730520714494,0.5258,2508.5,2508.4,0.84692265]
[1730520714696,0.5258,2508.5,2508.4,0.84692825]
[1730520715794,3.65035066,2508.5,2508.4,0.84692825]
[1730520716100,0.5258,2508.5,2508.4,0.84692825]
[1730520716502,3.92947066,2508.5,2508.4,0.56779825]
[1730520716997,3.92947066,2508.5,2508.4,0.84692825]
[1730520717505,3.92947066,2508.5,2508.4,0.84695421]
[1730520718007,3.92947066,2508.5,2508.4,0.27913]
[1730520718501,3.92947066,2508.5,2508.4,0.84695423]
[1730520719797,3.92947066,2508.5,2508.4,0.56782423]
[1730520719993,3.92947066,2508.5,2508.4,0.84695423]
[1730520720399,3.65035066,2508.5,2508.4,0.84695423]
[1730520721698,0.5258,2508.5,2508.4,0.84695423]
[1730520721901,3.65035066,2508.5,2508.4,0.84695423]
[1730520724199,3.65035066,2508.5,2508.4,0.27913]
[1730520724501,0.5258,2508.5,2508.4,0.27913]
[1730520724707,0.5258,2508.5,2508.4,0.84703231]
[1730520725005,0.5258,2508.5,2508.4,0.84703048]
[1730520725309,0.5258,2508.5,2508.4,1.7556727]
[1730520728005,0.5258,2508.5,2508.4,0.84709618]
[1730520728211,0.5258,2508.5,2508.4,1.75584206]
[1730520729309,3.65035066,2508.5,2508.4,1.75584206]
[1730520735415,3.92947066,2508.5,2508.4,1.75584206]
[1730520735713,3.92947066,2508.5,2508.4,0.27913]
[1730520735905,3.92947066,2508.5,2508.4,1.75621728]
[1730520736106,3.65035066,2508.5,2508.4,1.75621728]
[1730520736312,11.56117977,2508.5,2508.4,0.56811049]
[1730520736516,9.58689137,2508.5,2508.4,0.56811049]
[1730520736713,0.27915,2508.2,2508.0,4.81927]
[1730520736909,1.15026226,2508.1,2508.0,4.81927]
[1730520737219,1.15026226,2508.1,2508.0,5.45656701]
[1730520738515,1.63976226,2508.1,2508.0,5.45656701]
[1730520738905,1.63976226,2508.1,2508.0,5.45611059]
[1730520740613,1.63976226,2508.1,2508.0,2.24831059]
[1730520742413,1.63976226,2508.1,2508.0,0.77147]
[1730520742615,1.63976226,2508.1,2508.0,2.24763387]
[1730520742824,1.63976226,2508.1,2508.0,1.96846387]
[1730520743314,1.91892226,2508.1,2508.0,1.06005533]
[1730520743720,4.77697488,2508.1,2507.7,0.8108]
[1730520743913,2.61200572,2507.8,2507.7,0.8108]
[1730520744123,2.61200572,2507.8,2507.7,2.28692299]
[1730520744313,2.89119572,2507.8,2507.7,2.28692299]
[1730520744518,2.61200572,2507.8,2507.7,2.28692299]
[1730520744717,6.60000572,2507.8,2507.7,1.47612299]
[1730520744910,4.80559,2507.8,2507.7,0.56773961]
[1730520745515,0.27921,2507.7,2507.5,4.01433]
[1730520745716,3.76089132,2507.6,2507.5,4.01433]
[1730520746219,1.15026226,2507.6,2507.5,4.58175425]
[1730520746417,1.15026226,2507.6,2507.5,4.01433]
[1730520746619,3.7593991,2507.6,2507.5,4.01433]
[1730520748324,3.7593991,2507.6,2507.5,0.80653]
[1730520748619,1.15026226,2507.6,2507.5,0.80653]
[1730520749513,3.23549644,2507.6,2507.5,0.80653]
[1730520749713,1.15026226,2507.6,2507.5,0.80653]
[1730520750626,3.23485054,2507.6,2507.5,0.80653]
[1730520754021,3.51407054,2507.6,2507.5,0.5273]
[1730520754225,4.05167054,2507.6,2507.5,0.5273]
[1730520754624,4.53817054,2507.6,2507.5,0.5273]
[1730520754823,4.53817054,2507.6,2507.5,0.80653]
[1730520755521,4.53817054,2507.6,2507.5,0.5273]
[1730520755715,4.53817054,2507.6,2507.5,0.80653]
[1730520756123,4.25895054,2507.6,2507.5,0.80653]
[1730520758522,2.17436226,2507.6,2507.5,0.80653]
[1730520759327,3.7358809,2507.6,2507.5,0.80653]
[1730520760325,2.17436226,2507.6,2507.5,0.80653]
[1730520760637,3.73574839,2507.6,2507.5,0.80653]
[1730520761225,2.17436226,2507.6,2507.5,0.80653]
[1730520761834,3.73590764,2507.6,2507.5,0.80653]
[1730520763129,3.73586014,2507.6,2507.5,0.80653]
[1730520763329,2.17436226,2507.6,2507.5,0.80653]
[1730520764434,3.73579588,2507.6,2507.5,0.80653]
[1730520766326,2.17436226,2507.6,2507.5,0.80653]
[1730520766526,3.73593795,2507.6,2507.5,0.80653]
[1730520767426,2.17436226,2507.6,2507.5,0.80653]
[1730520768636,3.73599978,2507.6,2507.5,0.80653]
[1730520769635,2.17436226,2507.6,2507.5,0.80653]
[1730520770837,2.45358226,2507.6,2507.5,0.80653]
[1730520771435,4.53817054,2507.6,2507.5,0.27923]
[1730520771740,4.53817054,2507.6,2507.3,1.0179]
[1730520771741,4.53817054,2507.6,2507.4,0.27923]
[1730520772041,0.5055,2507.5,2507.4,0.27923]
[1730520773036,2.06795483,2507.5,2507.4,0.27923]
[1730520773838,0.5055,2507.5,2507.4,0.27923]
[1730520776538,2.59008828,2507.5,2507.4,0.27923]
[1730520777040,4.25895054,2507.6,2507.3,1.5364]
[1730520777333,4.25895054,2507.6,2507.5,0.27923]
[1730520777738,2.17436226,2507.6,2507.5,0.27923]
[1730520779533,4.7834991,2507.6,2507.5,0.27923]
[1730520780227,5.0627191,2507.6,2507.5,0.27923]
[1730520781735,2.45358226,2507.6,2507.5,0.27923]
[1730520784541,0.27924,2507.4,2507.3,0.27924]
[1730520784841,0.27924,2507.4,2507.3,0.27925]
[1730520784842,2.08779236,2507.4,2507.3,0.27925]
[1730520785032,2.08779236,2507.5,2507.3,3.988]
[1730520785233,2.08779236,2507.5,2507.4,4.78354]
[1730520785838,2.60959817,2507.6,2507.4,4.5043]
[1730520786029,2.60959817,2507.6,2507.5,4.26723]
[1730520786235,2.60959817,2507.6,2507.5,1.34506317]
[1730520786438,3.75986043,2507.6,2507.5,4.76573]
[1730520786744,3.75986043,2507.6,2507.5,5.33307148]
[1730520787134,1.42948226,2507.6,2507.5,5.05384148]
[1730520787448,2.41548226,2507.6,2507.5,0.4985]
[1730520788535,0.27923,2507.5,2507.4,0.27923]
[1730520788729,0.27923,2507.5,2507.4,0.56772786]
[1730520789645,3.41644262,2507.5,2507.4,0.56772786]
[1730520789942,0.27923,2507.5,2507.4,0.84696786]
[1730520790142,0.27923,2507.5,2507.4,0.56772786]
[1730520790641,3.41644262,2507.5,2507.4,0.56772786]
[1730520791936,3.13721262,2507.5,2507.4,0.56819248]
[1730520792243,3.13721262,2507.5,2507.4,0.84743248]
[1730520792539,3.13721262,2507.5,2507.4,1.75653696]
[1730520793239,3.41644262,2507.5,2507.4,1.7565356]
[1730520793440,3.41644262,2507.5,2507.4,1.75653792]
[1730520794145,3.41644262,2507.5,2507.4,0.84743248]
[1730520794348,3.13721262,2507.5,2507.4,0.84743248]
[1730520795347,3.41644262,2507.5,2507.4,0.56819248]
[1730520795547,3.41644262,2507.5,2507.4,0.56818905]
[1730520795952,3.41644262,2507.5,2507.4,0.84742905]
[1730520796245,3.13721262,2507.5,2507.4,0.84742905]
[1730520796447,3.13721262,2507.5,2507.4,1.75648949]
[1730520797046,3.13721262,2507.5,2507.4,2.24078949]
[1730520798940,3.13721262,2507.5,2507.4,3.37708815]
[1730520799135,3.13721262,2507.5,2507.4,7.36510315]
[1730520799339,3.13721262,2507.5,2507.4,6.22878949]
[1730520799539,3.13721262,2507.5,2507.4,7.95934]
[1730520799741,3.13721262,2507.5,2507.4,10.57274232]
[1730520800052,1.15026226,2507.7,2507.6,0.27922]
[1730520800247,1.15026226,2507.7,2507.6,2.89262232]
[1730520800551,1.15026226,2507.7,2507.6,1.75636044]
[1730520801649,1.15026226,2507.7,2507.6,5.74436044]
[1730520801953,1.15026226,2507.9,2507.8,0.27919]
[1730520802143,1.15026226,2507.9,2507.8,0.84732094]
[1730520802655,1.15026226,2507.9,2507.8,2.27948504]
[1730520804742,1.15026226,2507.9,2507.8,5.48683832]
[1730520804943,1.15026226,2507.9,2507.8,9.47403832]
[1730520805245,1.15026226,2507.9,2507.8,8.56612094]
[1730520805948,1.15026226,2507.9,2507.8,9.47386905]
[1730520806353,1.15026226,2507.9,2507.8,5.35832094]
[1730520808757,3.23733705,2507.9,2507.8,5.35832094]
[1730520809052,3.23733705,2507.9,2507.8,5.35725953]
[1730520809948,1.15026226,2507.9,2507.8,1.37005953]
[1730520810151,1.15026226,2507.9,2507.8,0.27919]
[1730520810152,2.70076226,2507.9,2507.8,0.27919]
[1730520810448,5.58879575,2507.9,2507.6,0.839]
[1730520810648,3.23657283,2507.7,2507.6,1.11822]
[1730520810854,3.23657283,2507.7,2507.6,1.68523227]
[1730520811645,1.15026226,2507.7,2507.6,1.68523227]
[1730520812051,1.15026226,2507.7,2507.6,8.88103227]
[1730520813149,1.15026226,2507.7,2507.6,5.67323227]
[1730520813550,1.15026226,2507.7,2507.6,8.88103227]
[1730520813746,1.15026226,2507.7,2507.6,8.88096434]
[1730520813957,3.23657283,2507.7,2507.6,8.88096434]
[1730520814745,3.23657283,2507.7,2507.6,8.04196434]
[1730520814951,3.23657283,2507.7,2507.6,4.89296434]
[1730520815151,3.23657283,2507.7,2507.6,8.88096434]
[1730520815355,3.23657283,2507.7,2507.6,4.89296434]
[1730520817350,3.23657283,2507.7,2507.6,4.32602]
[1730520817660,3.23657283,2507.7,2507.6,4.89296189]
[1730520821657,3.51578283,2507.7,2507.6,4.89300135]
[1730520822056,3.51578283,2507.7,2507.6,4.32602]
[1730520822357,3.51578283,2507.7,2507.6,3.48702]
[1730520822564,3.51578283,2507.7,2507.6,4.05402324]
[1730520823254,1.42947226,2507.7,2507.6,4.05402324]
[1730520823460,3.515303,2507.7,2507.6,4.05402324]
[1730520823760,1.42947226,2507.7,2507.6,3.48702]
[1730520824560,1.42947226,2507.7,2507.6,0.27922]
[1730520825962,1.42947226,2507.7,2507.6,0.84626855]
[1730520826461,1.15026226,2507.7,2507.6,0.84626855]
[1730520828464,1.15026226,2507.7,2507.6,0.84631946]
[1730520828860,1.15026226,2507.7,2507.6,0.84631892]
[1730520830557,3.75910575,2507.7,2507.6,0.84631892]
[1730520830954,3.75910575,2507.7,2507.6,1.41347176]
[1730520831968,1.15026226,2507.7,2507.6,1.41347176]
[1730520832168,3.75910575,2507.7,2507.6,1.41347176]
[1730520833759,3.75910575,2507.7,2507.6,0.84631892]
[1730520834068,3.75910575,2507.7,2507.6,1.41349237]
[1730520835672,3.75910575,2507.7,2507.6,0.84639345]
[1730520837365,3.75910575,2507.7,2507.6,0.27922]
[1730520837560,3.75910575,2507.7,2507.6,0.84656375]
[1730520839673,1.15026226,2507.7,2507.6,0.84656375]
[1730520839856,3.76199547,2507.7,2507.6,0.84656375]
[1730520840267,2.61215687,2507.7,2507.6,0.56734375]
[1730520840462,2.61215687,2507.7,2507.6,0.84656375]
[1730520840869,2.61216603,2507.7,2507.6,0.27922]
[1730520841071,1.42945226,2507.8,2507.5,0.838]
[1730520841265,1.42945226,2507.8,2507.7,0.27921]
[1730520841266,1.15026226,2507.8,2507.7,0.27921]
[1730520841466,1.15026226,2507.8,2507.7,0.84669967]
[1730520841666,1.42945226,2507.8,2507.7,0.84669967]
[1730520842764,1.15026226,2507.8,2507.7,0.84669967]
[1730520844172,1.15026226,2507.8,2507.7,0.84693007]
[1730520844568,1.42945226,2507.8,2507.7,0.27921]
[1730520844870,1.15026226,2507.8,2507.7,0.84701036]
[1730520845267,1.42945226,2507.8,2507.7,0.84701036]
[1730520846076,1.42945226,2507.8,2507.7,0.27921]
[1730520847168,1.15026226,2507.8,2507.7,0.27921]
[1730520847870,1.15026226,2507.8,2507.7,0.84704303]
[1730520848470,4.68510092,2507.9,2507.8,0.27919]
[1730520848670,1.5505,2507.9,2507.8,0.27919]
[1730520848965,1.5505,2507.9,2507.8,0.84698982]
[1730520849564,7.77184318,2508.0,2507.9,0.27918]
[1730520849975,7.77184318,2508.0,2507.9,0.847012]
[1730520850371,7.49266318,2508.0,2507.9,0.847012]
[1730520851271,7.49266318,2508.0,2507.9,0.84703452]
[1730520851467,7.77183318,2508.0,2507.9,0.84703452]
[1730520851772,7.49266318,2508.0,2507.9,0.84703452]
[1730520851973,4.35806226,2508.0,2507.9,0.84703452]
[1730520852970,1.15026226,2508.0,2507.9,0.84703452]
[1730520854272,1.15026226,2508.0,2507.9,1.75580937]
[1730520854869,1.15026226,2508.0,2507.9,0.27918]
[1730520855069,1.15026226,2508.0,2507.9,1.75585289]
[1730520856578,1.15026226,2508.0,2507.9,0.27918]
[1730520857478,4.56403318,2508.0,2507.8,0.27919]
[1730520857775,2.14776226,2507.9,2507.8,0.27919]
[1730520861381,4.28486318,2508.0,2507.7,0.4875]
[1730520861589,1.15026226,2508.0,2507.9,0.27918]
[1730520862676,4.28486318,2508.0,2507.9,0.27918]
[1730520863579,1.15026226,2508.0,2507.9,0.27918]
[1730520874887,3.13460092,2508.1,2508.0,0.27917]
[1730520878992,5.29626318,2508.2,2507.7,2.0235]
[1730520879295,2.6124663,2507.9,2507.8,1.42945226]
[1730520879495,2.6124663,2507.9,2507.8,4.63725226]
[1730520881395,2.08999223,2507.9,2507.8,4.63725226]
[1730520883401,2.08999223,2507.9,2507.8,8.62445226]
[1730520883993,2.6124663,2508.1,2507.8,8.34526226]
[1730520883994,2.08999223,2508.0,2507.8,8.34526226]
[1730520884192,2.08999223,2508.0,2507.9,2.43444226]
[1730520884494,2.08999223,2508.0,2507.9,6.42164226]
[1730520884994,2.08999223,2508.0,2507.9,7.25864226]
[1730520886397,2.08999223,2508.2,2507.9,8.02573913]
[1730520886598,1.56691471,2508.1,2508.0,1.42943226]
[1730520886797,1.56691471,2508.1,2508.0,5.90313226]
[1730520887394,1.56691471,2508.1,2508.0,9.11093226]
[1730520888801,1.56691471,2508.1,2508.0,5.90313226]
[1730520889000,1.56691471,2508.1,2508.0,5.12373226]
[1730520889201,1.56691471,2508.2,2508.0,8.83176226]
[1730520889400,1.56691471,2508.2,2508.1,0.27916]
[1730520889603,1.56691471,2508.2,2508.1,4.26636]
[1730520889998,1.56691471,2508.2,2508.1,7.47416]
[1730520891203,1.56691471,2508.2,2508.1,3.48696]
[1730520891902,1.56691471,2508.3,2508.2,0.27915]
[1730520892201,2.08999223,2508.4,2508.3,0.27914]
[1730520892404,2.08999223,2508.5,2508.4,0.27913]
[1730520892597,2.08999223,2508.6,2508.5,0.27912]
[1730520892797,2.08999223,2508.6,2508.5,1.27862]
[1730520893198,2.08999223,2508.7,2508.5,0.9995]
[1730520893502,2.6124663,2508.8,2508.5,0.9995]
[1730520893701,2.08683429,2508.7,2508.6,0.2791]
[1730520895003,2.08683429,2508.7,2508.6,1.42936226]
[1730520895302,2.08683429,2508.8,2508.7,0.27909]
[1730520898098,1.56397043,2508.8,2508.7,3.2078]
[1730520898407,3.04797043,2508.9,2508.8,0.27908]
[1730520898609,3.04764307,2508.9,2508.8,0.27908]
[1730520899206,3.04764307,2508.9,2508.8,1.42934226]
[1730520899906,1.56364307,2508.9,2508.8,1.42934226]
[1730520900210,1.56364307,2509.0,2508.8,5.13586226]
[1730520900508,3.56743429,2509.1,2508.9,1.98726226]
[1730520900509,3.04424307,2509.1,2508.9,1.98726226]
[1730520900709,3.04424307,2509.1,2509.0,0.27906]
[1730520901203,1.4806,2509.1,2509.0,0.27906]
[1730520906210,1.4806,2509.1,2509.0,0.76716]
[1730520908618,1.4806,2509.1,2509.0,0.27906]
[1730520910121,1.4806,2509.1,2509.0,1.11506]
[1730520917021,1.75965,2509.1,2509.0,0.836]
[1730520917225,1.75965,2509.1,2508.9,0.27907]
[1730520917226,7.30889307,2509.1,2508.9,1.11507]
[1730520917415,7.30889307,2509.1,2508.7,3.2078]
[1730520917416,4.19450533,2509.1,2508.7,3.2078]
[1730520917622,1.42932226,2509.0,2508.8,1.11508]
[1730520918016,0.27906,2509.0,2508.8,0.836]
[1730520918219,4.47355533,2509.1,2508.9,0.27906]
[1730520918424,4.47355533,2509.1,2509.0,0.27906]
[1730520918624,4.47355533,2509.1,2509.0,1.75663473]
[1730520918828,8.45915533,2509.1,2509.0,1.75663473]
[1730520919124,8.45915533,2509.1,2509.0,0.27906]
[1730520919426,6.89551226,2509.1,2509.0,0.27906]
[1730520919626,6.89551226,2509.1,2509.0,0.84735415]
[1730520919833,8.98234655,2509.1,2509.0,0.56829415]
[1730520920231,8.98234655,2509.1,2509.0,1.47756479]
[1730520921031,8.98234655,2509.1,2509.0,1.18833064]
[1730520921336,8.98234655,2509.1,2509.0,1.75664315]
[1730520922323,8.98234655,2509.1,2509.0,1.47758315]
[1730520922726,10.10331226,2509.1,2509.0,0.22057929]
[1730520922925,10.10331226,2509.1,2508.6,0.2791]
[1730520922926,9.82426226,2509.1,2508.6,0.2791]
[1730520923118,2.98961297,2508.7,2508.6,0.2791]
[1730520923325,1.42935226,2508.7,2508.6,0.2791]
[1730520923535,2.39355226,2508.7,2508.6,0.2791]
[1730520923727,2.39355226,2508.7,2508.6,0.84727587]
[1730520923927,2.39355226,2508.7,2508.6,0.2791]
[1730520924622,4.47390987,2508.7,2508.6,0.2791]
[1730520925032,2.39356226,2508.7,2508.6,0.2791]
[1730520925234,4.99399677,2508.7,2508.6,0.2791]
[1730520925428,4.99399677,2508.7,2508.5,0.27911]
[1730520925429,0.27911,2508.6,2508.5,0.27911]
[1730520925630,2.36051483,2508.6,2508.5,0.27911]
[1730520926025,2.08140483,2508.6,2508.5,0.27911]
[1730520926222,2.57680483,2508.6,2508.5,0.27911]
[1730520927023,2.85590483,2508.6,2508.5,0.27911]
[1730520927232,4.4818,2508.6,2508.3,1.3229]
[1730520927437,0.77451,2508.6,2508.5,0.27912]
[1730520927837,4.76091,2508.6,2508.5,0.27912]
[1730520928137,0.4954,2508.6,2508.5,0.27912]
[1730520928330,0.27914,2508.3,2508.2,3.2078]
[1730520928531,2.36124844,2508.3,2508.1,0.27916]
[1730520928727,0.27916,2508.1,2508.0,0.27917]
[1730520928937,1.84081138,2508.1,2508.0,0.27917]
[1730520929137,1.840796,2508.1,2508.0,0.27917]
[1730520929333,3.56650844,2508.2,2508.0,0.27917]
[1730520929534,3.84566844,2508.2,2508.0,0.27917]
[1730520930141,3.56650844,2508.2,2508.1,0.27916]
[1730520931629,3.56650844,2508.2,2508.0,0.27916]
[1730520931840,1.56161106,2508.1,2508.0,0.27916]
[1730520932038,3.56650844,2508.2,2508.0,0.27916]
[1730520932237,1.56139526,2508.1,2508.0,0.27916]
[1730520933937,1.56139526,2508.1,2507.9,1.95124226]
[1730520935046,1.56139526,2508.1,2507.9,1.67206226]
[1730520935341,1.56139526,2508.1,2508.0,0.27917]
[1730520938645,3.32494526,2508.2,2507.9,0.80097]
[1730520938845,1.56139526,2508.1,2508.0,0.27917]
[1730520939247,3.32494526,2508.2,2508.0,0.27917]
[1730520941748,3.04579526,2508.2,2508.0,0.27917]
[1730520942149,3.04579526,2508.2,2508.1,0.27916]
[1730520942556,5.54859526,2508.2,2508.1,0.27916]
[1730520943861,1.56139526,2508.3,2508.1,1.15026226]
[1730520944154,1.56139526,2508.3,2508.2,1.29025]
[1730520944457,1.56139526,2508.3,2508.2,1.78845]
[1730520951762,3.38923844,2508.4,2508.2,1.5093]
[1730520952964,3.38923844,2508.4,2508.3,0.27914]
[1730520953267,1.028,2508.4,2508.3,0.27914]
[1730520953466,5.29353,2508.4,2508.3,0.27914]
[1730520954359,5.0144,2508.4,2508.3,0.27914]
[1730520954569,5.29353,2508.4,2508.3,0.27914]
[1730520955471,7.89616555,2508.4,2508.3,0.27914]
[1730520959171,7.61703555,2508.4,2508.3,0.27914]
[1730520959762,7.89616555,2508.4,2508.3,0.27914]
[1730520960165,5.29353,2508.4,2508.3,0.27914]
[1730520960373,7.89991189,2508.4,2508.3,0.27914]
[1730520960969,7.62078189,2508.4,2508.3,0.27914]
[1730520961171,1.028,2508.4,2508.3,0.27914]
[1730520961971,3.63499426,2508.4,2508.3,0.27914]
[1730520962276,1.028,2508.4,2508.3,0.27914]
[1730520965173,3.41372092,2508.5,2508.3,0.27914]
[1730520965373,3.13460092,2508.5,2508.4,0.27913]
[1730520965678,2.88895707,2508.5,2508.4,0.27912]
[1730520966073,1.15026226,2508.5,2508.3,0.836]
[1730520966279,0.27914,2508.3,2508.2,0.4982]
[1730520966469,1.42940226,2508.3,2508.2,0.4982]
[1730520966777,2.42240226,2508.3,2508.2,0.4982]
[1730520967087,0.27915,2508.2,2508.1,0.27916]
[1730520968969,5.27786318,2508.3,2508.0,0.836]
[1730520969172,5.55700318,2508.3,2508.2,0.27915]
[1730520969783,8.76480318,2508.3,2508.2,0.27915]
[1730520970783,5.55700318,2508.3,2508.2,0.27915]
[1730520970984,8.76480318,2508.3,2508.2,0.27915]
[1730520972182,5.63020226,2508.3,2508.2,0.27915]
[1730520972583,8.76669103,2508.3,2508.2,0.27915]
[1730520973081,5.63020226,2508.3,2508.2,0.27915]
[1730520974890,5.63020226,2508.3,2508.2,0.84027005]
[1730520975991,4.83666226,2508.3,2508.2,0.84027005]
[1730520976586,6.82397058,2508.3,2508.2,1.36857005]
[1730520976788,6.34537058,2508.3,2508.2,1.36857005]
[1730520977088,6.34537058,2508.3,2508.2,1.87497005]
[1730520978384,3.2078,2508.3,2508.2,2.77289806]
[1730520978584,3.2078,2508.3,2508.2,3.92316032]
[1730520979295,5.82233345,2508.3,2508.2,3.92316032]
[1730520980292,2.61453345,2508.3,2508.2,7.91036032]
[1730520980485,2.61460852,2508.4,2508.3,0.27914]
[1730520980688,2.61460852,2508.4,2508.3,2.88845032]
[1730520980888,3.13757058,2508.8,2508.7,0.27909]
[1730520981887,4.35806226,2508.9,2508.8,0.27908]
[1730520981888,7.49563284,2508.9,2508.8,0.27908]
[1730520982287,4.35806226,2508.9,2508.8,0.27908]
[1730520982593,3.2078,2508.9,2508.8,0.27908]
[1730520982790,3.13757058,2509.0,2508.9,0.27907]
[1730520983189,1.15026226,2509.1,2509.0,0.27906]
[1730520983498,5.13586226,2509.1,2509.0,0.27906]
[1730520985394,1.15026226,2509.1,2509.0,0.27906]
[1730520985893,1.65846226,2509.2,2509.1,0.27905]
[1730520986091,0.5082,2509.2,2509.1,0.27905]
[1730520993198,2.59316203,2509.2,2509.1,0.27905]
[1730520996398,0.5082,2509.2,2509.1,0.27905]
[1730520996801,2.07122482,2509.2,2509.1,0.27905]
[1730520997005,2.07122482,2509.2,2509.1,1.29625]
[1730520997499,1.56302482,2509.2,2509.1,6.43211226]
[1730520997701,1.56302482,2509.3,2509.2,0.27904]
[1730520998707,3.75462429,2509.5,2509.3,0.27903]
[1730520998708,1.56302482,2509.4,2509.3,0.27903]
[1730520999102,4.03363429,2509.5,2509.4,0.27902]
[1730521000206,4.03363429,2509.5,2509.1,2.68706226]
[1730521000410,1.56206693,2509.4,2509.3,0.27902]
[1730521004708,1.84108693,2509.4,2509.3,0.27902]
[1730521004916,1.56206693,2509.4,2509.3,0.27902]
[1730521005507,1.84108693,2509.4,2509.3,0.27902]
[1730521005814,1.56206693,2509.4,2509.3,0.27902]
[1730521006917,1.84108693,2509.4,2509.3,0.27902]
[1730521007119,1.56206693,2509.4,2509.3,0.27902]
[1730521018232,3.75462429,2509.5,2509.4,0.27902]
[1730521018727,2.60436203,2509.5,2509.4,0.27902]
[1730521019114,0.5194,2509.5,2509.4,0.27902]
[1730521019528,2.08496203,2509.6,2509.5,0.279]
[1730521020225,2.08496203,2509.6,2509.3,1.84782226]
[1730521020226,2.08471054,2509.6,2509.3,1.84782226]
[1730521020421,1.56353266,2509.5,2509.4,1.42928226]
[1730521020719,1.56353266,2509.5,2509.4,4.63708226]
[1730521020921,1.56353266,2509.6,2509.4,4.35806226]
[1730521021228,1.56382628,2509.6,2509.5,1.2798]
[1730521021426,1.56382628,2509.6,2509.5,1.7652]
[1730521022133,2.60451054,2509.7,2509.5,1.4862]
[1730521022422,2.60451054,2509.7,2509.6,0.27899]
[1730521022930,2.60451054,2509.7,2509.6,1.42925226]
[1730521023421,2.08471054,2509.8,2509.7,0.27898]
[1730521023821,2.60031054,2509.8,2509.7,0.27898]
[1730521024827,2.60031054,2509.8,2509.4,4.35806226]
[1730521025023,2.08471054,2509.6,2509.4,4.0428]
[1730521025227,1.0332,2509.5,2509.4,4.32182]
[1730521025421,3.59901054,2509.5,2509.4,4.32182]
[1730521026125,1.5143,2509.5,2509.4,3.48682]
[1730521026330,4.11774496,2509.5,2509.4,3.48682]
[1730521026517,4.11774496,2509.5,2509.4,0.27902]
[1730521027430,4.39675496,2509.5,2509.3,0.835]
[1730521027730,4.39675496,2509.5,2509.4,0.27902]
[1730521028134,1.79331,2509.5,2509.4,0.27902]
[1730521028825,1.5143,2509.5,2509.4,0.27902]
[1730521030734,1.7933,2509.5,2509.4,0.27902]
[1730521032026,1.5143,2509.5,2509.4,0.27902]
[1730521033124,0.27902,2509.4,2509.3,0.27902]
[1730521033427,2.88948771,2509.4,2509.3,0.27902]
[1730521033624,2.61046771,2509.4,2509.3,0.27902]
[1730521035626,1.5143,2509.5,2509.4,0.27902]
[1730521042229,1.7933,2509.5,2509.4,0.27902]
[1730521043237,4.93087058,2509.5,2509.4,0.27902]
[1730521044331,4.65187058,2509.5,2509.4,0.27902]
[1730521044635,1.5143,2509.5,2509.4,0.27902]
[1730521045538,0.4811,2509.5,2509.4,0.27902]
[1730521045732,3.61867058,2509.5,2509.4,0.27902]
[1730521045933,0.4811,2509.5,2509.4,0.27902]
[1730521046645,0.4811,2509.5,2509.4,0.83957503]
[1730521048946,0.4811,2509.5,2509.4,0.83957973]
[1730521049237,0.4811,2509.5,2509.4,0.27902]
[1730521051243,0.7601,2509.5,2509.4,0.27902]
[1730521051443,0.4811,2509.5,2509.4,0.27902]
[1730521053336,0.4811,2509.5,2509.4,0.83961888]
[1730521053539,0.7601,2509.5,2509.4,0.27902]
[1730521053742,3.89767058,2509.5,2509.4,0.27902]
[1730521054351,3.61867058,2509.5,2509.1,5.0309]
[1730521054544,2.61376646,2509.2,2509.1,5.30995]
[1730521054741,2.61376646,2509.2,2509.1,6.76764216]
[1730521057045,2.61376646,2509.2,2509.1,3.55984216]
[1730521066955,2.61376646,2509.2,2509.1,3.28079216]
[1730521067153,2.61376646,2509.2,2509.1,3.55984216]
[1730521068450,2.61376646,2509.2,2509.1,3.5600109]
[1730521070359,4.14267058,2509.4,2509.1,3.2809609]
[1730521070563,4.14267058,2509.4,2509.3,0.27903]
[1730521070859,4.14267058,2509.4,2509.3,0.83974573]
[1730521071557,4.14267058,2509.4,2509.3,1.73750481]
[1730521071758,4.14267058,2509.4,2509.3,0.83974573]
[1730521072053,4.14267058,2509.4,2509.3,0.27903]
[1730521072260,4.14267058,2509.4,2509.3,0.84013313]
[1730521072453,4.14267058,2509.4,2509.3,0.27903]
[1730521072654,4.14267058,2509.4,2509.3,0.84015235]
[1730521074759,4.14267058,2509.4,2509.3,1.73795656]
[1730521075959,4.14267058,2509.4,2509.3,1.73795765]
[1730521082250,4.14267058,2509.4,2509.3,0.27903]
[1730521082469,4.14267058,2509.4,2509.3,1.73796562]
[1730521085664,4.14267058,2509.4,2509.3,0.27903]